Cogmind - Beta 15 @@@ ROGUE MODE // 2025.05.06 @ 22:47:24 Player: XDRM Result: Destroyed by G-47 Trooper with Particle Gun Performance ------------- Evolutions (2) 1000 Regions Visited (6) 1200 Robots Destroyed (72) 360 Value Destroyed (1621) 1621 Prototype IDs (23) 460 Alien Tech Used (0) 0 Bonus (300) 300 TOTAL SCORE: 4941 Bonus ------- Aligned with FarCom 300 Cogmind --------- Core Integrity 0/550 Matter 244/300 Energy 99/100 System Corruption 0% Temperature Cool (9) Movement Core (50) Location -8/Materials Parts ------- > --- POWER (1) -------- (None) > --- PROPULSION (2) --- (None) > --- UTILITY (6) ------ (None) > --- WEAPON (2) ------- (None) > --- INVENTORY (5) ---- Tractor Beam Bomb Drone Bay Plasma Cutter Hammer Peak State ------------ > --- POWER ------------ Light Angular Momentum Engine > --- PROPULSION ------- Wheel > --- UTILITY ---------- Advanced Heat Sink Huge Storage Unit Signal Interpreter Hacking Suite Hacking Suite System Shield > --- WEAPON ----------- AWS/Thermal > --- INVENTORY -------- Improved Heat Sink Huge Storage Unit Signal Interpreter Tractor Beam Bomb Drone Bay Heavy Laser Light Assault Rifle Rocket Launcher Mining Laser Plasma Cutter Hammer [Rating: 41] Favorites ----------- Power Light Ion Engine Engine Light Ion Engine Power Core Light Nuclear Core Propulsion Wheel Treads Light Treads Leg Carbon-fiber Leg Wheel Wheel Utility Signal Interpreter Device Sensor Array Storage Huge Storage Unit Processor Signal Interpreter Hackware Hacking Suite Protection Medium Armor Plating Weapon Assault Rifle Energy Gun AWS/Thermal Ballistic Gun Assault Rifle Launcher Grenade Launcher Build | -11 -10 -9 -9 -9 -8 -8 ------- Run | Yrd Mat Mat Min Exi Min Mat Slots Evolved 4 | . . 2 . . . 2 Power . | . . . . . . . Propulsion . | . . . . . . . Utility 4 | . . 2 . . . 2 Weapon . | . . . . . . . Parts Attached 37 | 8 5 5 . 1 3 15 Power 5 | 1 1 . . . 1 2 Engine 4 | 1 1 . . . 1 1 Core 1 | . . . . . . 1 Reactor . | . . . . . . . Propulsion 10 | 2 1 2 . . 2 3 Treads 3 | 2 1 . . . . . Leg 1 | . . . . . . 1 Wheel 6 | . . 2 . . 2 2 Hover . | . . . . . . . Flight . | . . . . . . . Utility 14 | 3 2 3 . . . 6 Device 5 | 2 . 1 . . . 2 Storage 3 | 1 1 1 . . . . Processor 2 | . 1 . . . . 1 Hackware 3 | . . . . . . 3 Protection 1 | . . 1 . . . . Artifact . | . . . . . . . Weapon 8 | 2 1 . . 1 . 4 Energy Gun 2 | . . . . 1 . 1 Energy Cannon . | . . . . . . . Ballistic Gun 3 | 2 . . . . . 1 Ballistic Cannon . | . . . . . . . Launcher 3 | . 1 . . . . 2 Special Weapon . | . . . . . . . Impact Weapon . | . . . . . . . Slashing Weapon . | . . . . . . . Piercing Weapon . | . . . . . . . Special Melee Weapon . | . . . . . . . Unidentified Prototypes . | . . . . . . . Parts Lost 19 | . 1 . . . 5 13 Power 5 | . 1 . . . 1 3 Propulsion 6 | . . . . . 3 3 Utility 5 | . . . . . 1 4 Weapon 3 | . . . . . . 3 Highest Loss Streak 7 | . 1 . . . 5 7 To Critical Strikes 1 | . . . . . 1 . Average Backups 10 | 2 8 10 12 13 12 10 Power . | . . . . . . . Propulsion . | . . . 1 1 . . Utility 5 | . 4 5 6 7 6 5 Weapon 3 | 1 2 3 4 4 4 4 Tool/Special . | . . . . . . . Unused Backups 10 | . 2 . 1 . . 7 Power . | . . . . . . . Propulsion . | . . . . . . . Utility 6 | . 2 . . . . 4 Weapon 3 | . . . 1 . . 2 Tool/Special 1 | . . . . . . 1 Average Slot Usage (%) 87 | . 99 99 100 92 71 74 Engine 9 | . 14 11 11 11 7 6 Treads 6 | . 27 6 . . . . Wheel 11 | . . 15 22 22 14 7 Device 9 | . 3 11 11 11 11 12 Storage 11 | . 14 11 11 11 11 8 Processor 11 | . 10 11 11 11 11 14 Hackware 3 | . . . . . . 12 Protection 4 | . . 9 11 11 4 . Energy Gun 4 | . . . . 7 11 8 Ballistic Gun 11 | . 22 19 21 7 . 1 Launcher 1 | . 5 2 . . . . Peak Build Rating 41 | 9 8 12 13 27 30 41 Average Rating 19 | 5 7 10 12 22 27 32 On Entrance 13 | . 7 8 11 13 27 30 Naked Turns 16 | . . . . . . 16 Heaviest Build 99 | 15 18 95 95 99 99 99 Greatest Support 40 | 40 40 40 20 20 26 20 Greatest Overweight (x) 29 | . . 9 4 4 29 28 Average Overweight (x) 3 | . . 3 4 4 5 7 Largest Inventory Capacity 25 | 8 10 25 25 25 25 25 Average Capacity 20 | 7 9 22 25 25 25 24 Most Carried 16 | 5 10 12 14 16 15 14 Average Carried 11 | 2 8 10 13 14 13 11 Final Capacity 25 | 8 10 25 25 25 25 5 Final Carried 15 | 5 9 12 14 14 15 5 Class Distribution -------------------- 61% | Mutant 14% | Scavenger-Skirmisher 10% | Skirmisher 9% | Hacker-Mutant 4% | Scavenger-Mutant Dominant Class ---------------- Mutant | -10/Materials Mutant | -9/Materials Mutant | -9/Mines Mutant | -9/Exiles Skirmisher | -8/Mines Scavenger-Skirmisher | -8/Materials Resources | -11 -10 -9 -9 -9 -8 -8 ----------- Run | Yrd Mat Mat Min Exi Min Mat Matter Collected 1164 | 334 249 168 219 . 25 169 Remotely . | . . . . . . . Salvage Created 1914 | 159 405 282 127 . 557 384 Parts 133 | 16 32 22 9 . 17 37 Haulers Intercepted 2 | . 1 1 . . . . Recyclers Shooed 1 | . . 1 . . . . Parts Field Recycled . | . . . . . . . Retrieved Matter . | . . . . . . . Parts Self-Destructed . | . . . . . . . Prevented . | . . . . . . . Kills | -11 -10 -9 -9 -9 -8 -8 ------- Run | Yrd Mat Mat Min Exi Min Mat Combat Hostiles Destroyed 49 | . 12 3 6 . 11 17 Guns 32 | . 6 2 4 . 11 9 AOE 17 | . 6 1 2 . . 8 Classes Destroyed 13 | 2 7 1 1 . 1 1 Worker 6 | . 1 1 . . . 4 Builder 4 | . 2 1 . . . 1 Tunneler 4 | 4 . . . . . . Hauler 2 | . 1 1 . . . . Recycler 3 | 1 . 1 . . 1 . Operator 2 | . 1 . . . . 1 Watcher 2 | . 1 . . . . 1 Swarmer 20 | . 3 . 4 . 3 10 Cutter 3 | . . . . . . 3 Grunt 20 | . 9 2 1 . 6 2 Brawler 1 | . . . 1 . . . Sentry 1 | . . 1 . . . . Hunter 4 | . . . . . 2 2 Best Kill Streak 11 | 5 5 3 4 . 9 11 Combat Bots Only 8 | . 3 1 4 . 8 7 Max Kills in Single Turn 4 | 2 2 3 2 . 1 4 Gunslinging 1 | . . . 1 . . . Exploded 2 | . 2 1 2 . . 2 Melee . | . . . . . . . Uniques/NPCs Destroyed . | . . . . . . . Combat | -11 -10 -9 -9 -9 -8 -8 -------- Run | Yrd Mat Mat Min Exi Min Mat Hostile Shots Fired 249 | . 39 12 12 . 57 129 Missed 89 | . 15 3 2 . 26 43 Hits 160 | . 24 9 10 . 31 86 Melee 5 | . . . 3 . . 2 Projectile 155 | . 24 9 7 . 31 84 AOE 1 | . . . . . . 1 Critical Strikes 9 | . . . 1 . 2 6 Damage Taken 2345 | . 385 103 145 . 413 1299 Core 791 | . 78 . 63 . 95 555 Absorbed by Shields . | . . . . . . . Regen/Repaired (Parts) 78 | . 78 . . . . . Core Remaining (%) 76 | 100 68 . . . 60 . Volleys Fired 115 | 9 40 27 9 . . 30 Largest 2 | 2 2 2 2 . . 2 Hottest 89 | 40 50 50 50 . . 89 Shots Fired 270 | 18 76 51 18 . 48 59 Gun 246 | 18 65 49 17 . 48 49 Cannon . | . . . . . . . Launcher 24 | . 11 2 1 . . 10 Special . | . . . . . . . Kinetic 162 | 18 65 49 17 . . 13 Thermal 84 | . . . . . 48 36 Explosive 24 | . 11 2 1 . . 10 Electromagnetic . | . . . . . . . Robot Hit Streak 25 | 7 8 5 15 . 25 11 Robot Miss Streak 5 | 3 5 3 2 . 4 4 Penetration Max . | . . . . . . . Secondary Targets 3 | . . . 1 . . 2 Max Gunslinging Chain 1 | . . . 1 . . 1 Autonomous 65 | . . . . . 48 17 Shots Hit Robots 168 | 12 39 33 15 . 36 33 Core Hits 110 | 6 34 11 9 . 17 33 Critical Kills . | . . . . . . . Critical Parts Destroyed . | . . . . . . . Critical Strikes . | . . . . . . . Melee Attacks . | . . . . . . . Impact . | . . . . . . . Slashing . | . . . . . . . Piercing . | . . . . . . . Sneak Attacks . | . . . . . . . Combat Hostiles . | . . . . . . . Follow-up Attacks . | . . . . . . . Damage Inflicted 4583 | 161 1046 564 289 . 1080 1443 Guns 2957 | 161 497 401 191 . 1080 627 Cannons . | . . . . . . . Explosions 1626 | . 549 163 98 . . 816 Melee . | . . . . . . . Ramming . | . . . . . . . Kinetic 1324 | 161 497 401 191 . . 74 Thermal 1633 | . . . . . 1080 553 Explosive 1596 | . 519 163 98 . . 816 Electromagnetic 30 | . 30 . . . . . Impact . | . . . . . . . Slashing . | . . . . . . . Piercing . | . . . . . . . Highest Corruption . | . . . . . . . Average Corruption . | . . . . . . . Corruption Purged . | . . . . . . . Corruption Blocked . | . . . . . . . Overload Shots . | . . . . . . . Overflow Damage 37 | . 30 7 . . . . Projectiles . | . . . . . . . Explosions 37 | . 30 7 . . . . Melee . | . . . . . . . Knockbacks . | . . . . . . . Impact . | . . . . . . . Kinetic . | . . . . . . . Secondary . | . . . . . . . Self-Inflicted Damage 240 | . 134 . . . . 106 Shots 7 | . 4 . . . . 3 Rammed . | . . . . . . . Targets Rammed . | . . . . . . . Kicked . | . . . . . . . Crushed . | . . . . . . . Highest Temperature 9 | . 5 . . . . 9 Average Temperature 2 | . 2 . . . . 2 Received Heat Transfer 411 | . 114 51 12 . 99 135 Siege Activations . | . . . . . . . Martial Activations . | . . . . . . . Shielding Activations . | . . . . . . . Robots Disrupted 1 | . 1 . . . . . Combat Hostiles 1 | . 1 . . . . . Robots Corrupted . | . . . . . . . Combat Hostiles . | . . . . . . . Parts Fried . | . . . . . . . Impact Corruptions . | . . . . . . . Robots Melted . | . . . . . . . Combat Hostiles . | . . . . . . . Parts Melted 8 | . . . . . 3 5 Heat Transferred 2183 | . . . . . 1369 814 Parts Sabotaged . | . . . . . . . Parts Stolen . | . . . . . . . Parts Stripped . | . . . . . . . Power Chain Reactions 2 | . 2 . . . . . Alert | -11 -10 -9 -9 -9 -8 -8 ------- Run | Yrd Mat Mat Min Exi Min Mat Maximum Alert Level 1 | . 1 . . . . 1 Low Security (%) 85 | 100 83 100 100 . 100 66 Level 1 14 | . 16 . . . . 33 Level 2 . | . . . . . . . Level 3 . | . . . . . . . Level 4 . | . . . . . . . Level 5 . | . . . . . . . High Security . | . . . . . . . Max Security . | . . . . . . . Peak Influence 307 | 20 253 98 104 . 179 307 Initial 62 | . . 62 . . . 29 Average 89 | 4 145 48 34 . 73 96 Influence Increases 1649 | 25 475 136 154 . 288 571 Destroy 0b10 Robot/C 980 | . 240 60 120 . 220 340 Destroy 0b10 Robot/NC 115 | 25 30 20 . . 5 35 Destroy Leader 218 | . 64 12 20 . 50 72 Successful Hack 8 | . . 5 . . 3 . Disable Machine 195 | . 90 30 . . . 75 Destroy Structure 118 | . 51 9 14 . 10 34 Lose Combat Pursuer 15 | . . . . . . 15 Influence Decreases 1368 | 25 326 285 154 . 210 368 Entered New Map 136 | . . 87 . . . 49 Time Decay 1068 | 25 316 198 154 . 186 189 Lost Part 164 | . 10 . . . 24 130 Squads Dispatched 10 | . 5 . . . . 5 Investigation 4 | . 3 . . . . 1 Extermination . | . . . . . . . Reinforcement 6 | . 2 . . . . 4 Assault . | . . . . . . . Garrison . | . . . . . . . Intercept . | . . . . . . . Searches Triggered . | . . . . . . . Construction Impeded . | . . . . . . . Haulers Reinforced . | . . . . . . . Active Scanning Responses . | . . . . . . . Cargo Convoy Interrupts . | . . . . . . . Stealth | -11 -10 -9 -9 -9 -8 -8 --------- Run | Yrd Mat Mat Min Exi Min Mat Distress Signals 6 | . 2 1 . . . 3 Communications Jammed . | . . . . . . . Distress Signals . | . . . . . . . Times Spotted 73 | . 18 5 6 . 11 33 Peak Tracking Total 7 | . 6 2 3 . 7 7 Tactical Retreats 1 | . . . . . . 1 Traps | -11 -10 -9 -9 -9 -8 -8 ------- Run | Yrd Mat Mat Min Exi Min Mat Traps Triggered 2 | . 2 . . . . . Indirectly . | . . . . . . . Trap Hack Attempts . | . . . . . . . Triggered . | . . . . . . . Disarmed . | . . . . . . . Reprogrammed . | . . . . . . . Reused . | . . . . . . . Traps Extracted . | . . . . . . . Installed . | . . . . . . . Triggered . | . . . . . . . Machines | -11 -10 -9 -9 -9 -8 -8 ---------- Run | Yrd Mat Mat Min Exi Min Mat Machines Disabled 13 | . 6 2 . . . 5 Max in Single Turn 2 | . 2 1 . . . 1 Machines Repaired . | . . . . . . . Machines Dismantled . | . . . . . . . Machines Sabotaged . | . . . . . . . Overloaded Fab Kills . | . . . . . . . Hacking | -11 -10 -9 -9 -9 -8 -8 --------- Run | Yrd Mat Mat Min Exi Min Mat Machines Accessed 13 | . 3 5 1 1 1 2 Terminals 9 | . 1 5 . . 1 2 Fabricators . | . . . . . . . Repair Stations 1 | . 1 . . . . . Recycling Units 1 | . 1 . . . . . Scanalyzers . | . . . . . . . Garrison Access . | . . . . . . . Total Hacks 41 | . 10 16 1 1 4 9 Successful 19 | . 7 4 1 1 3 3 Failed 22 | . 3 12 . . 1 6 Catastrophic 1 | . . 1 . . . . Database Lockouts . | . . . . . . . Manual 28 | . 2 16 . 1 . 9 Terminals 31 | . 2 16 . . 4 9 Fabricators . | . . . . . . . Repair Stations 3 | . 3 . . . . . Recycling Units 5 | . 5 . . . . . Scanalyzers . | . . . . . . . Garrison Access . | . . . . . . . Terminal Hacks 7 | . . 1 1 1 3 1 Record 3 | . . . . . 3 . Robot Analysis 1 | . . 1 . . . . Open Door 1 | . . . 1 . . . Terminal Index 1 | . . . . . . 1 Proto ID Catalog 1 | . . . . 1 . . Fabricator Hacks . | . . . . . . . Repair Station Hacks 2 | . 2 . . . . . Scan Component 1 | . 1 . . . . . Repair 1 | . 1 . . . . . Recycling Unit Hacks 4 | . 4 . . . . . Recycle Component 1 | . 1 . . . . . Process 1 | . 1 . . . . . Retrieve Matter 2 | . 2 . . . . . Scanalyzer . | . . . . . . . Garrison Access Hacks . | . . . . . . . Unauthorized Hacks 6 | . 1 3 . . . 2 Terminals 6 | . 1 3 . . . 2 Botnet 6 | . 1 3 . . . 2 Fabricators . | . . . . . . . Repair Stations . | . . . . . . . Recycling Units . | . . . . . . . Scanalyzers . | . . . . . . . Garrison Access . | . . . . . . . Data Cores Recovered 1 | . . . . . . 1 Used . | . . . . . . . Hacking Detections 10 | . 3 5 . . . 2 Full Trace Events 2 | . 1 . . . . 1 Feedback Events . | . . . . . . . Feedback Blocked . | . . . . . . . Robot Schematics Acquired . | . . . . . . . Robots Built . | . . . . . . . Authchips . | . . . . . . . Time . | . . . . . . . Total Robot Build Rating . | . . . . . . . Part Schematics Acquired . | . . . . . . . Parts Built . | . . . . . . . Authchips . | . . . . . . . Time . | . . . . . . . Total Part Build Rating . | . . . . . . . Parts Repaired 1 | . 1 . . . . . Time 26 | . 26 . . . . . Parts Recycled 1 | . 1 . . . . . Recycled Matter 87 | . 87 . . . . . Retrieved Matter 87 | . 87 . . . . . Retrieved Components . | . . . . . . . Parts Scanalyzed . | . . . . . . . Part Schematics Acquired . | . . . . . . . Parts Damaged . | . . . . . . . Bothacking | -11 -10 -9 -9 -9 -8 -8 ------------ Run | Yrd Mat Mat Min Exi Min Mat Used RIF Installer . | . . . . . . . Robots Hacked . | . . . . . . . Non-combat . | . . . . . . . Combat . | . . . . . . . Robot Hacks Applied . | . . . . . . . Relay Couplers Released . | . . . . . . . Fabnet Peak Effective % . | . . . . . . . Robots Rewired . | . . . . . . . Allies Hacked . | . . . . . . . Hacks Repelled . | . . . . . . . Allies | -11 -10 -9 -9 -9 -8 -8 -------- Run | Yrd Mat Mat Min Exi Min Mat Total Allies . | . . . . . . . Largest Group . | . . . . . . . Highest-Rated Group . | . . . . . . . Highest-Rated Ally . | . . . . . . . Total Orders . | . . . . . . . Ally Attacks . | . . . . . . . Total Damage . | . . . . . . . Kills . | . . . . . . . Allies Corrupted . | . . . . . . . Allies Melted . | . . . . . . . Intel | -11 -10 -9 -9 -9 -8 -8 ------- Run | Yrd Mat Mat Min Exi Min Mat Active Infowar (turns) 2523 | 35 173 403 370 463 445 634 Optics 620 | . . . . . . 620 Sensors 1302 | . . 403 370 463 66 . Terrain 839 | 6 . 33 . . 379 421 Seismic 202 | 29 173 . . . . . Robot Analysis Total 1 | . . 1 . . . . Derelict Logs Recovered . | . . . . . . . Drone Launches . | . . . . . . . Drone Recoveries . | . . . . . . . Exploration | -11 -10 -9 -9 -9 -8 -8 ------------- Run | Yrd Mat Mat Min Exi Min Mat Turns Passed 3647 | 121 807 403 370 463 450 1033 Spaces Moved 1695 | 51 399 195 233 329 226 262 Core 39 | 3 . . . . 4 32 Treads 490 | 48 399 43 . . . . Legs 8 | . . . . . . 8 Wheels 1158 | . . 152 233 329 222 222 Hover . | . . . . . . . Flight . | . . . . . . . Fastest Speed 50 | 50 160 140 140 140 135 50 Average Speed 167 | 153 160 150 140 140 186 235 Slowest Speed 1500 | 160 160 320 140 140 1500 1450 Overloaded Moves . | . . . . . . . Propulsion Burnouts . | . . . . . . . Robots Hopped . | . . . . . . . Potential Cave-ins . | . . . . . . . Cave-ins Triggered . | . . . . . . . Exploration Rate (%) 39 | 4 52 24 56 62 54 21 Regions Visited 6 Branch Regions 3 Pre-discovered Areas . | . . . . . . . Known Exits Taken 5 | . 1 1 1 1 1 . Unknown Exits Taken 1 | 1 . . . . . . Scrap Searched 1 | . . . 1 . . . Spaces Dug . | . . . . . . . Terrain Destroyed 108 | . 46 8 14 . 10 30 Melee . | . . . . . . . Projectile 11 | . . . . . 10 1 AOE 97 | . 46 8 14 . . 29 Terrain Rammed . | . . . . . . . Walls Destroyed . | . . . . . . . Machines Disabled . | . . . . . . . Actions | -11 -10 -9 -9 -9 -8 -8 --------- Run | Yrd Mat Mat Min Exi Min Mat Total 2299 | 72 489 253 258 332 255 640 Wait 399 | . 31 17 12 . 22 317 Move 1689 | 50 398 194 232 328 225 262 Hop . | . . . . . . . Pick Up 28 | 5 7 5 2 1 3 5 Fast Attach 17 | 7 1 2 . . 2 5 Attach 18 | . 1 2 . 1 2 12 Detach 3 | . . . . . . 3 Swap 14 | 1 8 3 2 . . . Drop 16 | . 3 3 1 2 1 6 Fire 115 | 9 40 27 9 . . 30 Melee . | . . . . . . . Ram . | . . . . . . . Kick . | . . . . . . . Crush . | . . . . . . . Escape Stasis . | . . . . . . . Rewire . | . . . . . . . Trap . | . . . . . . . Miscellaneous . | . . . . . . . Route ------- -11/Scrapyard -10/Materials (discovered 2 exits: *Mat / [*Min]) -9/Materials -9/Mines (discovered 3 exits: *Mat x2 / *Exi) -9/Exiles (discovered 2 exits: *Min x2) -8/Mines -8/Materials History --------- Turn | Location | Event 4 | -11/Scrapyard | Discovered new exit (range 16) 122 | -11/Scrapyard | Entered Materials 316 | -10/Materials | Build established: Mutant 332 | -10/Materials | Repaired Lgt. Treads 343 | -10/Materials | Discovered new exit (range 15) 460 | -10/Materials | Discovered new exit (range 16) 870 | -10/Materials | Identified exit to Materials 929 | -10/Materials | Entered another Materials area 929 | -9/Materials | Evolved 2 slots: Utility x2 1290 | -9/Materials | Discovered new exit (range 6) 1330 | -9/Materials | Identified exit to Mines 1332 | -9/Materials | Entered Mines 1388 | -9/Mines | Discovered new exit (range 13) 1443 | -9/Mines | Found the Drone Emporium 1449 | -9/Mines | Found Prototype Device 1516 | -9/Mines | Discovered new exit (range 8) 1527 | -9/Mines | Identified exit to Materials 1696 | -9/Mines | Deemed a non-threat by the Exiles lab entrance 1696 | -9/Mines | Discovered new exit (range 5) 1700 | -9/Mines | Identified exit to Exiles 1702 | -9/Mines | Entered Exiles 1736 | -9/Exiles | Met 8R-AWN 1760 | -9/Exiles | Met EX-HEX 1802 | -9/Exiles | Met EX-BIN 1819 | -9/Exiles | Aligned with FarCom system 1820 | -9/Exiles | Given EX-Vault access code 1852 | -9/Exiles | Opened EX-Vault 1862 | -9/Exiles | Found AWS/Thermal 1893 | -9/Exiles | Warned to stay clear of 0b10 Research branches 1932 | -9/Exiles | Met EX-DEC 1981 | -9/Exiles | Discovered new exit (range 12) 1995 | -9/Exiles | Identified exit to Mines 2146 | -9/Exiles | Discovered exit to Mines (range 15) 2165 | -9/Exiles | Left Exiles lab with AWS/Thermal 2165 | -9/Exiles | Entered Mines 2419 | -8/Mines | Lost 5 parts (1p3n1u) 2423 | -8/Mines | Destroyed 8 combat bots 2596 | -8/Mines | Discovered exit to Materials (range 5) 2615 | -8/Mines | Entered Materials 2615 | -8/Materials | Evolved 2 slots: Utility x2 2916 | -8/Materials | Build established: Scavenger-Skirmisher 3293 | -8/Materials | AWS/Thermal suddenly broke down 3335 | -8/Materials | Build established: Hacker-Mutant 3336 | -8/Materials | Destroyed 7 combat bots 3345 | -8/Materials | Lost 4 parts (1p1n1u1w) 3618 | -8/Materials | Core integrity fell below 50% 3624 | -8/Materials | Core integrity fell below 20% 3632 | -8/Materials | Released all parts (3) 3648 | -8/Materials | Destroyed by G-47 Trooper with Particle Gun Last Messages --------------- 03616_ C-17 Slicer destroyed. 03616_ Terminal disabled. 03617_ H-61 Shepherd calls for reinforcements. 03617_ ALERT: Hostile activity reported, dispatching reinforcements to area. 03617_ Hacking Suite destroyed. 03617_ Critical hit (Blast). 03618_ C-17 Slicer destroyed. 03618_ Electrolysis Chamber disabled. 03620_ Knocked back. 03620_ C-17 Slicer destroyed. 03625_ Knocked back. 03632_ Wheel destroyed. 03632_ Hvy. Laser destroyed. 03632_ Knocked back. 03632_ Released Signal Interpreter. 03632_ Released Huge Storage Unit. 03632_ Released Mni. Grenade Launcher. 03639_ ALERT: Hostiles spotted, dispatching reinforcements to Terminal M009. Map ----- +----------------------------------------------------+ | | | | | | | | | | | | | | | | | | | | | | | | | | | | | | | | | | | | | | | | | ?????????????????????????????????????????????????? | | ?????????????????????????????????????????????????? | | ???????????????####??????????????????????????????? | | ???????????????#== ??????????????????????????????? | | ???????????????#== ???##########?????????????????? | | ???????????????#!! #### !@ #?????????????????? | | ???????????????#!! + """ #?????????????????? | | ???????????????#!! # ! """ #?????????????????? | | ???????????????#!! + g""" #?????????????????? | | ???????????????##### # #?????????????????? | | ??????????????###### # g""" #?????????????????? | | ??????????????# # = """g#?????????????????? | | ??????????????# + """ #?????????????????? | | ??????????????#|!""" # #?????????????????? | | ??????????????#!%""" ####+#####?????????????????? | | ?????# ########!!"""H #### ###???????????????????? | | ?? ] g ??g?g???????????? | | ?? = ????????????????? | | ?????########## ########Y###/#??????????????????? | | ??????????????#%%#??????? #??????????????????????? | | ??????????????# ########+##?????????????????????? | | ??????????????# ## #?????????????????????? | | ?????????????## " #?????????????????????? | | ?????????????# "" #?????????????????????? | | ?????????????+ " " #?????????????????????? | | ?????????????# #?????????????????????? | | ?????????????# #?????????????????????? | | ?????????????## #?????????????????????? | | ??????????????# # %= #?????????????????????? | | ??????????????# # #?????????????????????? | +----------------------------------------------------+ Best States ------------- Heat Dissipation 50 Energy Generation 18 Energy Capacity 250 Matter Stores 300 Matter Capacity 300 Sight Range 18 Robot Scan Range 14 Terrain Scan Range 16 Terrain Scan Density 10 Armor Coverage 225 Evasion (%) 50 Recoil Reduction 2 Offensive Hacking 20 Defensive Hacking 10 Item Schematics ----------------- None Robot Schematics ------------------ None Fabricated ------------ Nothing Repaired ---------- Lgt. Treads | 44% | -10/Materials Alien Tech Used ----------------- None Achievements -------------- None Challenges ------------ None Game ------ Seed FluxDecoderReplicator Manual? 0 Play Time 00:39:12 Cumulative 71.0 hours Start 2025.05.06 @ 22:03:31 End 2025.05.06 @ 22:47:24 Sessions 1 Manual Loads 0 Difficulty Rogue Special Mode None Game No. 59 Rogue 59 Adventurer 0 Explorer 0 Win Type - Total 0 Types 0/0/0/0/0/0/0/0/0/0 Lore% 25 Gallery% 37 Achievement% 40 Wizard Run 0 Options --------- Layout 1 ASCII 0 Keyboard 0 Movement Mouse Keybinds 0 Fullscreen 2 Font 24/X11 Map View 50x35 Zoom Use 0% Tactical HUD 1 Map Filters NONE Filters NONE Steam 1 RUN: c6a47564-630b-4a38-a972-95a60118caa4